bitfinex-derivatives/quotes_BTCF0:USTF0_20250629
["timestamp","ask_amount","ask_price","bid_price","bid_amount"]
[1751158523692,1.45740926,107560.0,107550.0,0.09266946]
[1751158528395,1.10856193,107560.0,107550.0,0.47106276]
[1751158528700,1.80000193,107560.0,107550.0,0.47106276]
[1751158528894,1.80000193,107560.0,107550.0,0.4155333]
[1751158529097,1.80000193,107560.0,107550.0,0.44331147]
[1751158529896,2.05684926,107560.0,107550.0,0.44331147]
[1751158530298,1.5431546,107560.0,107550.0,0.44331147]
[1751158530601,1.80000193,107560.0,107550.0,0.44331147]
[1751158531901,2.05684926,107560.0,107550.0,0.44331147]
[1751158533004,2.05684926,107560.0,107550.0,0.18646414]
[1751158535300,2.05684926,107560.0,107550.0,0.15868597]
[1751158539009,2.05684926,107560.0,107550.0,0.14944597]
[1751158540108,0.8517146,107560.0,107550.0,0.53642]
[1751158540308,0.71222625,107570.0,107560.0,0.1301146]
[1751158540504,0.91354625,107570.0,107560.0,0.76065523]
[1751158540704,0.91354625,107570.0,107560.0,0.5038079]
[1751158541703,0.47915358,107570.0,107560.0,0.5038079]
[1751158541911,1.17039358,107570.0,107560.0,0.5038079]
[1751158542109,0.47915358,107570.0,107560.0,0.5038079]
[1751158542317,1.17039358,107570.0,107560.0,0.5038079]
[1751158542611,1.17039358,107570.0,107560.0,0.57902204]
[1751158543909,1.15520674,107570.0,107560.0,0.59560132]
[1751158544213,0.59308674,107570.0,107560.0,0.59560132]
[1751158544708,0.60859264,107570.0,107560.0,0.59560132]
[1751158545214,0.60859264,107570.0,107560.0,0.63262634]
[1751158545413,0.60859264,107570.0,107560.0,0.59560132]
[1751158548612,0.60859264,107570.0,107560.0,0.62690132]
[1751158548920,0.60859264,107570.0,107560.0,0.69167078]
[1751158550625,0.60859264,107570.0,107560.0,0.63614132]
[1751158554221,0.60859264,107570.0,107560.0,0.37929399]
[1751158554419,0.60859264,107570.0,107560.0,0.63614132]
[1751158555821,0.47947264,107570.0,107560.0,0.63614132]
[1751158556422,0.60859264,107570.0,107560.0,0.63614132]
[1751158557927,0.63989264,107570.0,107560.0,0.63614132]
[1751158558419,0.62438674,107570.0,107560.0,0.63614132]
[1751158559127,0.62438674,107570.0,107560.0,0.69167078]
[1751158561029,0.62438674,107570.0,107560.0,0.63614132]
[1751158567535,0.62438674,107570.0,107560.0,0.69167078]
[1751158570036,0.68748674,107570.0,107560.0,0.66037078]
[1751158570229,0.68748674,107570.0,107560.0,0.62334576]
[1751158573942,0.68748674,107570.0,107560.0,0.63787549]
[1751158574334,0.68748674,107570.0,107560.0,0.58234603]
[1751158576342,0.68748674,107570.0,107560.0,0.5678163]
[1751158578945,0.68748674,107570.0,107560.0,0.66040343]
[1751158579746,0.68748674,107570.0,107560.0,0.60485115]
[1751158582352,0.68748674,107570.0,107560.0,0.66040343]
[1751158583455,0.68748674,107570.0,107560.0,0.60485115]
[1751158585754,0.68748674,107570.0,107560.0,0.66040343]
[1751158587458,0.65518674,107570.0,107560.0,0.66040343]
[1751158587953,0.62438674,107570.0,107560.0,0.66040343]
[1751158588155,0.62438674,107570.0,107560.0,0.69270343]
[1751158589152,0.62438674,107570.0,107560.0,0.6001163]
[1751158593463,0.36753941,107570.0,107560.0,0.67019754]
[1751158593757,0.62438674,107570.0,107560.0,0.67019754]
[1751158601080,0.62438674,107570.0,107560.0,0.41335021]
[1751158601284,0.62438674,107570.0,107560.0,0.67019754]
[1751158603087,0.62438674,107570.0,107560.0,0.41335021]
[1751158603285,0.62438674,107570.0,107560.0,0.67019754]
[1751158603485,0.62438674,107570.0,107560.0,0.65566781]
[1751158604588,0.62438674,107570.0,107560.0,0.6001163]
[1751158604986,0.62438674,107570.0,107560.0,0.65566768]
[1751158605487,0.62438674,107570.0,107560.0,0.25018862]
[1751158605785,0.62438674,107570.0,107560.0,0.63715065]
[1751158605985,0.62422674,107570.0,107560.0,0.63715065]
[1751158606191,0.62422674,107570.0,107560.0,0.60485065]
[1751158606486,0.68802674,107570.0,107560.0,0.60485065]
[1751158606786,0.68802674,107570.0,107560.0,0.57465065]
[1751158607389,0.68802674,107570.0,107560.0,0.41353595]
[1751158607590,1.04882674,107570.0,107560.0,0.41353595]
[1751158610287,1.04882674,107570.0,107560.0,0.14010934]
[1751158614188,1.04882674,107570.0,107560.0,0.39695667]
[1751158614393,1.57896674,107570.0,107560.0,0.46275667]
[1751158615291,1.57896674,107570.0,107560.0,0.51830805]
[1751158615494,1.61056674,107570.0,107560.0,0.51830805]
[1751158617789,1.61056674,107570.0,107560.0,0.45250805]
[1751158619896,1.61056674,107570.0,107560.0,0.4154738]
[1751158622899,1.61056674,107570.0,107560.0,0.15862647]
[1751158623098,1.61056674,107570.0,107560.0,0.4154738]
[1751158624200,1.61056674,107570.0,107560.0,0.15862647]
[1751158624497,1.61056674,107570.0,107560.0,0.4154738]
[1751158624693,1.61056674,107570.0,107560.0,0.15862647]
[1751158624895,1.61056674,107570.0,107560.0,0.4154738]
[1751158625297,1.61056674,107570.0,107560.0,0.15862647]
[1751158625498,1.61056674,107570.0,107560.0,0.4154738]
[1751158625692,1.61056674,107570.0,107560.0,0.4465738]
[1751158625893,1.61056674,107570.0,107560.0,0.4779738]
[1751158629200,1.61056674,107570.0,107560.0,0.45611824]
[1751158629594,1.61056674,107570.0,107560.0,0.19927091]
[1751158629793,1.61056674,107570.0,107560.0,0.48851824]
[1751158634105,1.61056674,107570.0,107560.0,0.23167091]
[1751158634305,1.61056674,107570.0,107560.0,0.48851824]
[1751158634707,1.61056674,107570.0,107560.0,0.16787091]
[1751158634906,1.61056674,107570.0,107560.0,0.42471824]
[1751158635806,0.82476674,107570.0,107560.0,0.42471824]
[1751158636010,0.82476674,107570.0,107560.0,0.51981824]
[1751158636011,1.51504674,107570.0,107560.0,0.51981824]
[1751158636403,0.56791941,107570.0,107560.0,0.77666557]
[1751158636608,1.51504674,107570.0,107560.0,0.51981824]
[1751158637811,1.54614674,107570.0,107560.0,0.51981824]
[1751158638215,1.54614674,107570.0,107560.0,0.45521824]
[1751158638413,1.61064674,107570.0,107560.0,0.45521824]
[1751158639014,1.61064674,107570.0,107560.0,0.4459738]
[1751158639314,1.57804674,107570.0,107560.0,0.4459738]
[1751158639510,1.60844674,107570.0,107560.0,0.4459738]
[1751158639716,1.60844674,107570.0,107560.0,0.15862647]
[1751158639915,1.60844674,107570.0,107560.0,0.4154738]
[1751158642512,1.60844674,107570.0,107560.0,0.15862647]
[1751158644816,1.60844674,107570.0,107560.0,0.4154738]
[1751158646016,1.60844674,107570.0,107560.0,0.4795738]
[1751158647718,1.60844674,107570.0,107560.0,0.22272647]
[1751158647913,1.60844674,107570.0,107560.0,0.4795738]
[1751158649213,1.60844674,107570.0,107560.0,0.22272647]
[1751158649412,1.60844674,107570.0,107560.0,0.19102647]
[1751158649618,0.91816674,107570.0,107560.0,0.48490853]
[1751158649822,1.54606674,107570.0,107560.0,0.48490853]
[1751158650018,1.54606674,107570.0,107560.0,0.55100853]
[1751158652222,1.51496674,107570.0,107560.0,0.55100853]
[1751158659429,1.51496674,107570.0,107560.0,0.5139738]
[1751158669134,1.51496674,107570.0,107560.0,0.52324197]
[1751158672044,1.15416674,107570.0,107560.0,0.52324197]
[1751158672238,1.51496674,107570.0,107560.0,0.52324197]
[1751158676046,1.51496674,107570.0,107560.0,0.49044197]
[1751158676246,1.61206674,107570.0,107560.0,0.49044197]
[1751158677256,1.25126674,107570.0,107560.0,0.49044197]
[1751158677454,1.61206674,107570.0,107560.0,0.49044197]
[1751158679154,1.61206674,107570.0,107560.0,0.4811738]
[1751158680154,0.92186674,107570.0,107560.0,0.4811738]
[1751158680355,1.61174674,107570.0,107560.0,0.4811738]
[1751158682359,0.82476674,107570.0,107560.0,0.4811738]
[1751158682558,1.51464674,107570.0,107560.0,0.4811738]
[1751158682858,1.51464674,107570.0,107560.0,0.5139738]
[1751158685860,1.54584674,107570.0,107560.0,0.5139738]
[1751158686254,1.54584674,107570.0,107560.0,0.25712647]
[1751158686557,1.54584674,107570.0,107560.0,0.5139738]
[1751158695152,1.18504674,107570.0,107560.0,0.5139738]
[1751158695356,1.54584674,107570.0,107560.0,0.5139738]
[1751158696269,1.18504674,107570.0,107560.0,0.5139738]
[1751158696564,1.54584674,107570.0,107560.0,0.5139738]
[1751158705762,1.54584674,107570.0,107560.0,0.25712647]
[1751158705957,1.54584674,107570.0,107560.0,0.5139738]
[1751158706157,1.54584674,107570.0,107560.0,0.25712647]
[1751158706366,1.54584674,107570.0,107560.0,0.5139738]
[1751158708868,1.61004674,107570.0,107560.0,0.5139738]
[1751158710771,1.61004674,107570.0,107560.0,0.25712647]
[1751158713771,1.61004674,107570.0,107560.0,0.5139738]
[1751158715068,1.61004674,107570.0,107560.0,0.08341233]
[1751158715069,1.86689407,107570.0,107560.0,0.08341233]
[1751158715268,2.03026287,107570.0,107560.0,0.0277803]
[1751158715466,2.03026287,107570.0,107550.0,0.0277803]
[1751158715467,0.1301147,107560.0,107550.0,0.0277803]
[1751158715667,1.06750936,107560.0,107550.0,0.0277803]
[1751158718379,0.1301268,107550.0,107540.0,0.1261207]
[1751158718571,1.50187413,107550.0,107540.0,0.1261207]
[1751158719069,1.50187413,107550.0,107540.0,0.0890803]
[1751158721377,1.50187413,107550.0,107540.0,0.0613]
[1751158721577,1.51130626,107550.0,107540.0,0.0613]
[1751158721879,1.25445893,107550.0,107540.0,0.0613]
[1751158722279,1.51130626,107550.0,107540.0,0.0613]
[1751158723875,1.51130626,107550.0,107540.0,0.31814733]
[1751158725079,1.51130626,107550.0,107540.0,0.0613]
[1751158729184,1.51130626,107550.0,107540.0,0.1261207]
[1751158732181,0.81227413,107550.0,107540.0,0.1261207]
[1751158732386,1.46859413,107550.0,107540.0,0.38296803]
[1751158732587,1.46859413,107550.0,107540.0,0.41536803]
[1751158733379,1.46859413,107550.0,107540.0,0.43218271]
[1751158734386,1.46859413,107550.0,107540.0,0.40440241]
[1751158736289,1.46859413,107550.0,107540.0,0.45984419]
[1751158744196,1.46859413,107550.0,107540.0,0.58998309]
[1751158744396,1.46859413,107550.0,107540.0,0.55294269]
[1751158751300,1.53379413,107550.0,107540.0,0.55294269]
[1751158752102,1.53379413,107550.0,107540.0,0.52054269]
[1751158760013,1.53379413,107550.0,107540.0,0.26369536]
[1751158760213,1.53379413,107550.0,107540.0,0.52054269]
[1751158760914,1.53379413,107550.0,107540.0,0.39040379]
[1751158761413,1.53379413,107550.0,107540.0,0.13355646]
[1751158761614,1.53379413,107550.0,107540.0,0.39040379]
[1751158766720,1.53379413,107550.0,107540.0,0.35960379]
[1751158769224,1.53379413,107550.0,107540.0,0.39666052]
[1751158778921,1.17299413,107550.0,107540.0,0.39666052]
[1751158779119,1.53379413,107550.0,107540.0,0.35960379]
[1751158779319,1.53379413,107550.0,107540.0,0.32910379]
[1751158783925,1.53379413,107550.0,107540.0,0.07225646]
[1751158786324,1.17299413,107550.0,107540.0,0.07225646]
[1751158786530,1.53379413,107550.0,107540.0,0.07225646]
[1751158787031,1.53379413,107550.0,107540.0,0.32910379]
[1751158788935,1.17299413,107550.0,107540.0,0.32910379]
[1751158789427,1.53379413,107550.0,107540.0,0.32910379]
[1751158789926,1.17299413,107550.0,107540.0,0.32910379]
[1751158790134,1.53379413,107550.0,107540.0,0.32910379]
[1751158790334,1.17299413,107550.0,107540.0,0.31228911]
[1751158790535,1.53379413,107550.0,107540.0,0.31228911]
[1751158790935,1.17299413,107550.0,107540.0,0.31228911]
[1751158791235,1.53379413,107550.0,107540.0,0.31228911]
[1751158794034,1.17299413,107550.0,107540.0,0.31228911]
[1751158794234,1.53379413,107550.0,107540.0,0.05544178]
[1751158799540,1.53343413,107550.0,107540.0,0.05544178]
[1751158803039,0.84427413,107550.0,107540.0,0.05544178]
[1751158803245,1.53343413,107550.0,107540.0,0.37448911]
[1751158803646,1.2765868,107550.0,107540.0,0.37448911]
[1751158803846,1.53343413,107550.0,107540.0,0.37448911]
[1751158804342,0.84427413,107550.0,107540.0,0.37448911]
[1751158804645,1.50123413,107550.0,107540.0,0.37448911]
[1751158806745,0.81207413,107550.0,107540.0,0.37448911]
[1751158806945,1.50123413,107550.0,107540.0,0.37448911]
[1751158809149,1.50123413,107550.0,107540.0,0.41154721]
[1751158809950,1.50123413,107550.0,107540.0,0.15469988]
[1751158810250,1.53383413,107550.0,107540.0,0.41154721]
[1751158810848,1.53383413,107550.0,107540.0,0.15469988]
[1751158811049,0.84467413,107550.0,107540.0,0.15469988]
[1751158811347,1.53379413,107550.0,107540.0,0.15469988]
[1751158812249,1.53379413,107550.0,107540.0,0.12469988]
[1751158815049,1.53379413,107550.0,107540.0,0.25483868]
[1751158815351,1.53379413,107550.0,107540.0,0.12469988]
[1751158817453,1.53379413,107550.0,107540.0,0.38154721]
[1751158819157,1.53379413,107550.0,107540.0,0.34448911]
[1751158820858,1.53379413,107550.0,107540.0,0.08764178]
[1751158825067,1.17299413,107550.0,107540.0,0.08764178]
[1751158825271,1.53379413,107550.0,107540.0,0.08764178]
[1751158826768,1.53379413,107550.0,107540.0,0.34448911]
[1751158827266,1.17299413,107550.0,107540.0,0.34448911]
[1751158827470,1.53379413,107550.0,107540.0,0.34448911]
[1751158834385,1.53379413,107550.0,107540.0,0.28904733]
[1751158838272,1.17299413,107550.0,107540.0,0.28904733]
[1751158838481,1.53379413,107550.0,107540.0,0.28904733]
[1751158839882,1.53379413,107550.0,107540.0,0.0322]
[1751158840073,1.53379413,107550.0,107540.0,0.28904733]
[1751158841978,1.53379413,107550.0,107540.0,0.0322]
[1751158843982,0.84467413,107550.0,107540.0,0.0322]
[1751158844179,1.53359413,107550.0,107540.0,0.0322]
[1751158850089,0.1301389,107540.0,107530.0,0.47780456]
[1751158850287,0.38698623,107540.0,107530.0,0.47780456]
[1751158850489,0.38698623,107540.0,107530.0,0.57410456]
[1751158854090,0.38698623,107540.0,107530.0,0.57410496]
[1751158854292,0.38698623,107540.0,107530.0,0.44395396]
[1751158854492,0.38698623,107540.0,107530.0,0.57410496]
[1751158859096,0.38698623,107540.0,107530.0,0.50004629]
[1751158860197,0.38698623,107540.0,107530.0,0.57410496]
[1751158864700,0.38698623,107540.0,107530.0,0.44395396]
[1751158865493,0.38698623,107540.0,107530.0,0.57410486]
[1751158866496,0.38698623,107540.0,107530.0,0.50004619]
[1751158867299,0.38698623,107540.0,107530.0,0.55563667]
[1751158868007,0.38698623,107540.0,107530.0,0.29878934]
[1751158868304,0.38698623,107540.0,107530.0,0.55563667]
[1751158869098,0.38698623,107540.0,107530.0,0.57410486]
[1751158888109,0.38698623,107540.0,107530.0,0.54110486]
[1751158888310,0.42008623,107540.0,107530.0,0.54110486]
[1751158899117,0.42008623,107540.0,107530.0,0.46704619]
[1751158904821,0.42008623,107540.0,107530.0,0.52263847]
[1751158907214,0.42008623,107540.0,107530.0,0.46704619]
[1751158908621,1.03773356,107540.0,107530.0,0.34483963]
[1751158908817,1.09933356,107540.0,107530.0,0.47499063]
[1751158909213,1.09933356,107540.0,107530.0,0.5080898]
[1751158909620,1.09933356,107540.0,107530.0,0.45249833]
[1751158910612,1.09933356,107540.0,107530.0,0.50809507]
[1751158913523,1.09933356,107540.0,107530.0,0.45249833]
[1751158914220,1.09933356,107540.0,107530.0,0.12106911]
[1751158914425,1.09933356,107540.0,107530.0,0.25122001]
[1751158914625,1.09933356,107540.0,107530.0,0.12106911]
[1751158917326,1.09933356,107540.0,107530.0,0.25122011]
[1751158925135,1.09933356,107540.0,107530.0,0.12106911]
[1751158926537,1.09933356,107540.0,107530.0,0.25122011]
[1751158927032,0.73853356,107540.0,107530.0,0.25122011]
[1751158927234,1.09933356,107540.0,107530.0,0.25122011]
[1751158932730,1.09933356,107540.0,107530.0,0.50806744]
[1751158937241,1.09933356,107540.0,107530.0,0.45249833]
[1751158938241,1.09933356,107540.0,107530.0,0.526557]
[1751158940434,1.09933356,107540.0,107530.0,0.45249833]
[1751158942134,1.09933356,107540.0,107530.0,0.0655]
[1751158942335,1.09933356,107540.0,107530.0,0.32234733]
[1751158942640,1.09933356,107540.0,107530.0,0.12110294]
[1751158943246,1.11473948,107540.0,107530.0,0.12110294]
[1751158945243,1.11473948,107540.0,107530.0,0.08800294]
[1751158945444,1.11473948,107540.0,107530.0,0.05560294]
[1751158947348,1.67493948,107540.0,107530.0,0.05560294]
[1751158949144,1.67493948,107540.0,107530.0,0.06484847]
[1751158952947,1.31413948,107540.0,107530.0,0.06484847]
[1751158953147,1.67493948,107540.0,107530.0,0.06484847]
[1751158954348,1.67493948,107540.0,107530.0,0.0277922]
[1751158954549,1.80309948,107540.0,107530.0,0.0277922]
[1751158956157,1.80309948,107540.0,107530.0,0.04191755]
[1751158956361,1.80309948,107540.0,107530.0,0.04291755]
[1751158957154,2.05994681,107540.0,107530.0,0.0287922]
[1751158958261,0.130151,107530.0,107520.0,0.06484847]
[1751158958558,1.09804566,107530.0,107520.0,0.06484847]
[1751158959154,1.09804566,107530.0,107520.0,0.09265921]
[1751158967367,1.09804566,107530.0,107520.0,0.10692343]
[1751158974271,1.09804566,107530.0,107520.0,0.05132049]
[1751158974474,1.09804566,107530.0,107520.0,0.07909498]
[1751158976381,1.09804566,107530.0,107520.0,0.04203871]
[1751158977380,1.09804566,107530.0,107520.0,0.02777449]
[1751158987389,1.09804566,107530.0,107520.0,0.06483076]
[1751158987589,1.09804566,107530.0,107520.0,0.02777449]
[1751158989290,0.1301631,107520.0,107510.0,0.12077449]
[1751158989490,1.73985724,107520.0,107510.0,0.13522907]
[1751158990490,1.73985724,107520.0,107510.0,0.13622907]
[1751158991091,1.74902097,107520.0,107510.0,0.13622907]
[1751158991989,1.74902097,107520.0,107510.0,0.13522907]
[1751158992688,1.74902097,107520.0,107510.0,0.12077449]
[1751158997294,1.74902097,107520.0,107510.0,0.15783076]
[1751158998596,1.71732097,107520.0,107510.0,0.15783076]
[1751158999196,1.71732097,107520.0,107510.0,0.14860294]
[1751159002600,1.19446258,107520.0,107510.0,0.14860294]
[1751159002901,1.70815724,107520.0,107510.0,0.14860294]
[1751159004601,1.7175113,107520.0,107510.0,0.14860294]
[1751159007398,1.7175113,107520.0,107510.0,0.16286073]
[1751159016197,1.7479113,107520.0,107510.0,0.16286073]
[1751159019612,1.7479113,107520.0,107510.0,0.13286073]
[1751159020007,1.7803113,107520.0,107510.0,0.13286073]
[1751159020207,1.8128113,107520.0,107510.0,0.13286073]
[1751159038627,1.4520113,107520.0,107510.0,0.13286073]
[1751159038828,1.8128113,107520.0,107510.0,0.13286073]
[1751159039228,1.8128113,107520.0,107510.0,0.16995182]
[1751159040030,1.4520113,107520.0,107510.0,0.16995182]
[1751159040230,1.8128113,107520.0,107510.0,0.13286073]
[1751159045935,1.1245313,107520.0,107510.0,0.13286073]
[1751159046137,1.8125313,107520.0,107510.0,0.13286073]
[1751159052938,1.4517313,107520.0,107510.0,0.13286073]
[1751159053139,1.8125313,107520.0,107510.0,0.13286073]
[1751159054932,1.4517313,107520.0,107510.0,0.13286073]
[1751159055243,1.8125313,107520.0,107510.0,0.13286073]
[1751159058744,1.8125313,107520.0,107510.0,0.11860294]
[1751159062245,1.8125313,107520.0,107510.0,0.13288442]
[1751159062546,1.8125313,107520.0,107510.0,0.10278442]
[1751159066643,1.7476313,107520.0,107510.0,0.06988442]
[1751159066847,1.8098313,107520.0,107510.0,0.06988442]
[1751159074247,1.4490313,107520.0,107510.0,0.06988442]
[1751159074452,1.8098313,107520.0,107510.0,0.06988442]
[1751159079352,1.8098313,107520.0,107510.0,0.10697164]
[1751159089264,1.8098313,107520.0,107510.0,0.06988442]
[1751159093363,1.8098313,107520.0,107510.0,0.10696869]
[1751159094266,1.8098313,107520.0,107510.0,0.06988442]
[1751159095469,1.8098313,107520.0,107510.0,0.10696946]
[1751159097970,1.4490313,107520.0,107510.0,0.10696946]
[1751159098167,1.8098313,107520.0,107510.0,0.10696946]
[1751159100177,1.8098313,107520.0,107510.0,0.06988442]
[1751159100378,1.8098313,107520.0,107510.0,0.13028442]
[1751159107584,1.8098313,107520.0,107510.0,0.11600294]
[1751159110789,1.80961321,107520.0,107510.0,0.11600294]
[1751159114490,1.80961321,107520.0,107510.0,0.16745571]
[1751159119890,1.44881321,107520.0,107510.0,0.16745571]
[1751159120087,1.80961321,107520.0,107510.0,0.16745571]
[1751159122692,1.80961321,107520.0,107510.0,0.11185277]
[1751159124297,1.80961321,107520.0,107510.0,0.16745571]
[1751159129295,1.80961321,107520.0,107510.0,0.13970508]
[1751159131598,1.44881321,107520.0,107510.0,0.13970508]
[1751159131796,1.80961321,107520.0,107510.0,0.13970508]
[1751159139300,1.80961321,107520.0,107510.0,0.16745571]
[1751159142601,1.44881321,107520.0,107510.0,0.16745571]
[1751159142801,1.80961321,107520.0,107510.0,0.16745571]
[1751159152009,1.44881321,107520.0,107510.0,0.16745571]
[1751159152204,1.80961321,107520.0,107510.0,0.16745571]
[1751159157522,1.80961321,107520.0,107510.0,0.15309901]
[1751159157916,1.44881321,107520.0,107510.0,0.15309901]
[1751159158117,1.80961321,107520.0,107510.0,0.15309901]
[1751159160920,1.44881321,107520.0,107510.0,0.15309901]
[1751159161121,1.80961321,107520.0,107510.0,0.15309901]
[1751159163023,1.44881321,107520.0,107510.0,0.15309901]
[1751159163322,1.80961321,107520.0,107510.0,0.15309901]
[1751159165324,1.44881321,107520.0,107510.0,0.15309901]
[1751159165525,1.80961321,107520.0,107510.0,0.15309901]
[1751159167529,1.80961321,107520.0,107510.0,0.16747208]
[1751159167931,1.44881321,107520.0,107510.0,0.16747208]
[1751159168130,1.80961321,107520.0,107510.0,0.16747208]
[1751159168933,1.44881321,107520.0,107510.0,0.16747208]
[1751159169333,1.80961321,107520.0,107510.0,0.16747208]
[1751159174434,1.71701321,107520.0,107510.0,0.10707208]
[1751159174929,1.35621321,107520.0,107510.0,0.10707208]
[1751159175135,1.81321321,107520.0,107510.0,0.10707208]
[1751159178338,1.81321321,107520.0,107510.0,0.10707239]
[1751159179339,1.81321321,107520.0,107510.0,0.07932211]
[1751159183137,1.45241321,107520.0,107510.0,0.07932211]
[1751159183327,1.81321321,107520.0,107510.0,0.07932211]
[1751159188332,2.07006054,107520.0,107510.0,0.07932211]
[1751159188927,1.81321321,107520.0,107510.0,0.07932211]
[1751159189127,1.81321321,107520.0,107510.0,0.04222604]
[1751159189333,1.81321321,107520.0,107510.0,0.10707239]
[1751159193143,1.81321321,107520.0,107510.0,0.05146945]
[1751159196645,2.17401321,107520.0,107510.0,0.05146945]
[1751159202539,1.81321321,107520.0,107510.0,0.05146945]
[1751159202748,2.17401321,107520.0,107510.0,0.05146945]
[1751159207549,2.17401321,107520.0,107510.0,0.03709607]
[1751159209350,2.17401321,107520.0,107510.0,0.09269901]
[1751159217557,2.17401321,107520.0,107510.0,0.10715845]
[1751159218752,2.17401321,107520.0,107510.0,0.05155551]
[1751159219362,2.17401321,107520.0,107510.0,0.04231655]
[1751159220457,2.17401321,107520.0,107510.0,0.10501655]
[1751159223964,1.45241321,107520.0,107510.0,0.10501655]
[1751159224163,2.17401321,107520.0,107510.0,0.10501655]
[1751159226662,0.97231855,107520.0,107510.0,0.10501655]
[1751159226970,2.17321321,107520.0,107510.0,0.10501655]
[1751159229369,2.17321321,107520.0,107510.0,0.11425551]
[1751159231969,2.17321321,107520.0,107510.0,0.09979607]
[1751159233274,2.17338292,107520.0,107510.0,0.09979607]
[1751159239277,2.17338292,107520.0,107510.0,0.11422412]
[1751159244180,2.17338292,107520.0,107510.0,0.08292412]
[1751159247580,2.17338292,107520.0,107510.0,0.06849607]
[1751159250893,1.45178292,107520.0,107510.0,0.06849607]
[1751159251186,2.17338292,107520.0,107510.0,0.06849607]
[1751159256290,2.17338292,107520.0,107510.0,0.03709607]
[1751159257587,2.17338292,107520.0,107510.0,0.05154099]
[1751159259695,2.17338292,107520.0,107510.0,0.03709607]
[1751159260095,2.17338292,107520.0,107510.0,0.06496233]
[1751159263997,1.45178292,107520.0,107510.0,0.06496233]
[1751159264198,2.17338292,107520.0,107510.0,0.06496233]
[1751159266597,2.17338292,107520.0,107510.0,0.07940697]
[1751159269409,2.17338292,107520.0,107510.0,0.01444464]
[1751159273114,1.45178292,107520.0,107510.0,0.01444464]
[1751159273416,2.17338292,107520.0,107510.0,0.01444464]
[1751159275116,1.45178292,107520.0,107510.0,0.01444464]
[1751159275317,2.17338292,107520.0,107510.0,0.01444464]
[1751159276620,2.17338292,107520.0,107510.0,0.0423109]
[1751159277011,2.17338292,107520.0,107510.0,0.01444464]
[1751159277920,0.1301752,107510.0,107500.0,0.16039252]
[1751159278120,0.87550253,107510.0,107500.0,0.17486858]
[1751159279026,0.51470253,107510.0,107500.0,0.17486858]
[1751159279222,0.87550253,107510.0,107500.0,0.17486858]
[1751159279521,0.87550253,107510.0,107500.0,0.16650919]
[1751159289934,0.74782253,107510.0,107500.0,0.16650919]
[1751159290133,1.43490253,107510.0,107500.0,0.16650919]
[1751159292134,1.43490253,107510.0,107500.0,0.16651657]
[1751159293934,1.43490253,107510.0,107500.0,0.15203313]
[1751159301838,1.46750253,107510.0,107500.0,0.15203313]
[1751159304245,1.46750253,107510.0,107500.0,0.16651496]
[1751159304438,1.53170253,107510.0,107500.0,0.16651496]
[1751159304941,1.17090253,107510.0,107500.0,0.16651496]
[1751159305141,1.53170253,107510.0,107500.0,0.16651496]
[1751159305742,1.53170253,107510.0,107500.0,0.13501496]
[1751159323275,1.17090253,107510.0,107500.0,0.13501496]
[1751159323569,1.53170253,107510.0,107500.0,0.13501496]
[1751159329186,1.17090253,107510.0,107500.0,0.13501496]
[1751159329478,1.53170253,107510.0,107500.0,0.13501496]
[1751159330280,1.17090253,107510.0,107500.0,0.13501496]
[1751159330480,1.53170253,107510.0,107500.0,0.13501496]
[1751159338279,1.17090253,107510.0,107500.0,0.13501496]
[1751159338487,1.53170253,107510.0,107500.0,0.10381496]
[1751159341388,0.8171352,107510.0,107500.0,0.36066229]
[1751159341577,1.07398253,107510.0,107500.0,0.36775935]
[1751159344284,1.07398253,107510.0,107500.0,0.42348294]
[1751159344585,1.07398253,107510.0,107500.0,0.16663561]
[1751159344886,1.07398253,107510.0,107500.0,0.42348294]
[1751159345184,1.43478253,107510.0,107500.0,0.42348294]
[1751159345988,1.43478253,107510.0,107500.0,0.16663561]
[1751159347589,1.43478253,107510.0,107500.0,0.29682291]
[1751159349588,1.43478253,107510.0,107500.0,0.16663561]
[1751159349985,1.46508253,107510.0,107500.0,0.13583561]
[1751159350290,1.52898253,107510.0,107500.0,0.17298592]
[1751159353296,1.54424312,107510.0,107500.0,0.17298592]
[1751159355901,1.54424312,107510.0,107500.0,0.15850409]
[1751159357998,1.54424312,107510.0,107500.0,0.17273876]
[1751159358198,1.80109045,107510.0,107500.0,0.10903876]
[1751159358898,1.80109045,107510.0,107500.0,0.10903865]
[1751159359899,1.80109045,107510.0,107500.0,0.09480409]
[1751159360300,1.80109045,107510.0,107500.0,0.07188822]
[1751159368115,1.44029045,107510.0,107500.0,0.07188822]
[1751159368311,1.80109045,107510.0,107500.0,0.07188822]
[1751159370015,1.44029045,107510.0,107500.0,0.07188822]
[1751159370218,1.80109045,107510.0,107500.0,0.07188822]
[1751159375019,1.80109045,107510.0,107500.0,0.10904706]
[1751159375209,1.80109045,107510.0,107500.0,0.05332347]
[1751159376119,1.80109045,107510.0,107500.0,0.03808903]
[1751159376320,1.80109045,107510.0,107500.0,0.06594828]
[1751159378310,1.80109045,107510.0,107500.0,0.08022915]
[1751159380714,1.80109045,107510.0,107500.0,0.06594828]
[1751159390232,1.80109045,107510.0,107500.0,0.00093019]
[1751159397933,0.1301873,107500.0,107490.0,0.0605]
[1751159398140,1.00468196,107500.0,107490.0,0.0605]
[1751159398440,1.03568196,107500.0,107490.0,0.0605]
[1751159400336,1.03568196,107500.0,107490.0,0.12551809]
[1751159402943,1.00468196,107500.0,107490.0,0.15571809]
[1751159404442,1.03508196,107500.0,107490.0,0.15571809]
[1751159410451,1.03508196,107500.0,107490.0,0.11855925]
[1751159411149,1.03508196,107500.0,107490.0,0.15571809]
[1751159416052,1.03508196,107500.0,107490.0,0.08835925]
[1751159416255,1.09748196,107500.0,107490.0,0.08835925]
[1751159417155,1.09748196,107500.0,107490.0,0.12551809]
[1751159418857,1.09748196,107500.0,107490.0,0.08835925]
[1751159419156,1.09748196,107500.0,107490.0,0.12551809]
[1751159427572,1.09748196,107500.0,107490.0,0.06501809]
[1751159429571,1.22532196,107500.0,107490.0,0.06501809]
[1751159437571,0.86452196,107500.0,107490.0,0.06501809]
[1751159437777,1.22532196,107500.0,107490.0,0.06501809]
[1751159439183,0.86452196,107500.0,107490.0,0.06501809]
[1751159439384,1.22532196,107500.0,107490.0,0.06501809]
[1751159440178,1.22532196,107500.0,107490.0,0.02785925]
[1751159441080,0.86452196,107500.0,107490.0,0.02785925]
[1751159441280,1.22532196,107500.0,107490.0,0.02785925]
[1751159442180,0.1301994,107490.0,107480.0,0.15701809]
[1751159442481,1.43508673,107490.0,107480.0,0.17119741]
[1751159442979,1.07428673,107490.0,107480.0,0.17119741]
[1751159443173,1.43508673,107490.0,107480.0,0.17119741]
[1751159445484,1.1782394,107490.0,107480.0,0.17119741]
[1751159445782,1.43508673,107490.0,107480.0,0.27354966]
[1751159446682,0.87556673,107490.0,107480.0,0.27354966]
[1751159450182,0.87556673,107490.0,107480.0,0.29211441]
[1751159452676,0.87556673,107490.0,107480.0,0.54896174]
[1751159453575,0.87556673,107490.0,107480.0,0.29211441]
[1751159455179,0.87556673,107490.0,107480.0,0.23639082]
[1751159457089,0.87556673,107490.0,107480.0,0.29215964]
[1751159461891,0.74784673,107490.0,107480.0,0.54900697]
[1751159462094,0.87556673,107490.0,107480.0,0.54900697]